[Event "FIDE U16 Olympiad_boards_1-80"]
[Site "Eindhoven, Netherlands"]
[Date "2023.08.13"]
[Round "1.67"]
[White "Mwase, Mathew"]
[Black "Manko, Mariia"]
[Result "0-1"]
[TimeControl "2700+10"]
[WhiteElo "1478"]
[BlackElo "1912"]

1. d4 {[%clk 00:45:18]} {[%emt 00:00:01]} Nf6 {[%clk 00:45:18]} {[%emt
00:00:02]} 2. c4 {[%clk 00:45:26]} {[%emt 00:00:02]} c5 {[%clk 00:45:27]} 3. d5
{[%clk 00:45:34]} {[%emt 00:00:02]} b5 {[%clk 00:45:36]} {[%emt 00:00:01]} 4.
cxb5 {[%clk 00:45:43]} {[%emt 00:00:02]} a6 {[%clk 00:45:45]} {[%emt 00:00:01]}
5. bxa6 {[%clk 00:45:51]} {[%emt 00:00:01]} g6 {[%clk 00:45:53]} {[%emt
00:00:02]} 6. Nc3 {[%clk 00:45:53]} {[%emt 00:00:08]} Bg7 {[%clk 00:46:01]}
{[%emt 00:00:02]} 7. e4 {[%clk 00:45:58]} {[%emt 00:00:05]} O-O {[%clk
00:46:08]} {[%emt 00:00:03]} 8. a7 {[%clk 00:46:04]} {[%emt 00:00:04]} Rxa7
{[%clk 00:46:15]} {[%emt 00:00:03]} 9. Nf3 {[%clk 00:45:45]} {[%emt 00:00:29]}
e6 {[%clk 00:46:03]} {[%emt 00:00:21]} 10. Be2 {[%clk 00:45:14]} {[%emt
00:00:41]} exd5 {[%clk 00:46:09]} {[%emt 00:00:05]} 11. exd5 {[%clk 00:45:23]}
{[%emt 00:00:01]} d6 {[%clk 00:45:18]} {[%emt 00:01:01]} 12. O-O {[%clk
00:44:28]} {[%emt 00:01:04]} Na6 {[%clk 00:42:13]} {[%emt 00:03:16]} 13. h3
{[%clk 00:42:00]} {[%emt 00:02:39]} Nc7 {[%clk 00:40:46]} {[%emt 00:01:36]} 14.
Bf4 {[%clk 00:37:51]} {[%emt 00:04:19]} Rb7 {[%clk 00:38:55]} {[%emt 00:02:02]}
15. Qd2 {[%clk 00:34:19]} {[%emt 00:03:41]} Nfxd5 {[%clk 00:35:04]} {[%emt
00:04:01]} 16. Nxd5 {[%clk 00:23:17]} {[%emt 00:11:12]} Rxb2 {[%clk 00:32:18]}
{[%emt 00:02:56]} 17. Bg5 {[%clk 00:14:38]} {[%emt 00:08:49]} Rxd2 {[%clk
00:27:37]} {[%emt 00:04:51]} 18. Bxd8 {[%clk 00:14:43]} {[%emt 00:00:06]} Nxd5
{[%clk 00:26:10]} {[%emt 00:01:36]} 19. Nxd2 {[%clk 00:11:17]} {[%emt
00:03:36]} Bxa1 {[%clk 00:25:02]} {[%emt 00:01:18]} 20. Rxa1 {[%clk 00:09:34]}
{[%emt 00:01:54]} Rxd8 {[%clk 00:25:06]} {[%emt 00:00:06]} 21. a4 {[%clk
00:08:32]} {[%emt 00:01:12]} Nc3 {[%clk 00:20:19]} {[%emt 00:04:56]} 22. Bf1
{[%clk 00:07:29]} {[%emt 00:01:13]} d5 {[%clk 00:17:57]} {[%emt 00:02:33]} 23.
a5 {[%clk 00:05:30]} {[%emt 00:02:08]} c4 {[%clk 00:16:02]} {[%emt 00:02:05]}
24. a6 {[%clk 00:02:04]} {[%emt 00:03:37]} Bd7 {[%clk 00:15:52]} {[%emt
00:00:19]} 25. a7 {[%clk 00:01:26]} {[%emt 00:00:48]} Ra8 {[%clk 00:10:15]}
{[%emt 00:05:47]} 26. Bxc4 {[%clk 00:00:49]} {[%emt 00:00:47]} dxc4 {[%clk
00:09:39]} {[%emt 00:00:46]} 27. Nxc4 {[%emt 00:02:14]} Na4 {[%clk 00:07:36]}
28. Nb6 {[%clk 00:00:22]} {[%emt 00:00:46]} Nxb6 {[%clk 00:07:38]} {[%emt
00:00:08]} 29. Rb1 {[%clk 00:00:32]} Nc8 {[%clk 00:07:30]} {[%emt 00:00:18]} 30.
Rb8 {[%clk 00:00:21]} {[%emt 00:00:21]} Rxa7 {[%clk 00:07:35]} {[%emt
00:00:05]} 31. f4 {[%clk 00:00:19]} {[%emt 00:00:11]} Kg7 {[%clk 00:07:39]}
{[%emt 00:00:06]} 32. Kh2 {[%clk 00:00:24]} {[%emt 00:00:04]} Nd6 {[%clk
00:07:37]} {[%emt 00:00:12]} 33. Rd8 {[%clk 00:00:23]} {[%emt 00:00:12]} Ne4
{[%clk 00:06:54]} {[%emt 00:00:53]} 34. Rb8 {[%clk 00:00:23]} {[%emt 00:00:10]}
Bc6 {[%clk 00:07:01]} {[%emt 00:00:02]} 35. Rb2 {[%clk 00:00:29]} {[%emt
00:00:05]} h5 {[%clk 00:06:49]} {[%emt 00:00:22]} 36. Rc2 {[%clk 00:00:33]}
{[%emt 00:00:06]} Ba8 {[%clk 00:06:55]} {[%emt 00:00:04]} 37. Rb2 {[%clk
00:00:30]} {[%emt 00:00:14]} h4 {[%clk 00:06:58]} {[%emt 00:00:06]} 38. Kg1
{[%clk 00:00:25]} {[%emt 00:00:15]} Ra1+ {[%clk 00:07:05]} {[%emt 00:00:03]}
0-1

[Event "FIDE U16 Olympiad_boards_1-80"]
[Site "Eindhoven, Netherlands"]
[Date "2023.08.13"]
[Round "1.68"]
[White "Rappazzo, Johannes"]
[Black "Zuri, Tatiina"]
[Result "1-0"]
[TimeControl "2700+10"]
[WhiteElo "1776"]
[BlackElo "1297"]

1. e4 {[%clk 00:45:16]} {[%emt 00:00:03]} d6 {[%clk 00:45:09]} {[%emt
00:00:11]} 2. d4 {[%clk 00:45:23]} {[%emt 00:00:03]} g6 {[%clk 00:45:17]}
{[%emt 00:00:02]} 3. Nc3 {[%clk 00:45:29]} {[%emt 00:00:04]} Bg7 {[%clk
00:45:23]} {[%emt 00:00:04]} 4. Be3 {[%clk 00:45:32]} {[%emt 00:00:07]} Nf6
{[%clk 00:45:26]} {[%emt 00:00:08]} 5. f3 {[%clk 00:45:21]} {[%emt 00:00:21]}
O-O {[%clk 00:45:28]} {[%emt 00:00:08]} 6. Qd2 {[%clk 00:45:16]} {[%emt
00:00:15]} e5 {[%clk 00:45:03]} {[%emt 00:00:35]} 7. Nge2 {[%clk 00:43:47]}
{[%emt 00:01:39]} Nbd7 {[%clk 00:43:25]} {[%emt 00:01:46]} 8. d5 {[%clk
00:41:41]} {[%emt 00:02:17]} Nb6 {[%clk 00:41:33]} {[%emt 00:02:02]} 9. Ng3
{[%clk 00:36:13]} {[%emt 00:05:38]} h5 {[%clk 00:37:59]} {[%emt 00:03:44]} 10.
Be2 {[%clk 00:33:53]} {[%emt 00:02:31]} Kh7 {[%clk 00:35:40]} {[%emt 00:02:28]}
11. O-O-O {[%clk 00:32:12]} {[%emt 00:01:51]} Bd7 {[%clk 00:32:36]} {[%emt
00:03:14]} 12. h4 {[%clk 00:29:00]} {[%emt 00:03:23]} a5 {[%clk 00:27:26]}
{[%emt 00:05:19]} 13. Nf1 {[%clk 00:25:38]} {[%emt 00:03:33]} Qe8 {[%clk
00:25:20]} {[%emt 00:02:15]} 14. g4 {[%clk 00:23:35]} {[%emt 00:02:14]} hxg4
{[%clk 00:22:56]} {[%emt 00:02:34]} 15. h5 {[%clk 00:14:25]} {[%emt 00:09:20]}
Rh8 {[%clk 00:22:35]} {[%emt 00:00:31]} 16. hxg6+ {[%clk 00:10:14]} {[%emt
00:04:21]} Kg8 {[%clk 00:21:14]} {[%emt 00:01:31]} 17. Rxh8+ {[%clk 00:09:34]}
{[%emt 00:00:50]} Bxh8 {[%clk 00:20:41]} {[%emt 00:00:42]} 18. gxf7+ {[%clk
00:09:05]} {[%emt 00:00:39]} Qxf7 {[%clk 00:19:15]} {[%emt 00:01:36]} 19. Nh2
{[%clk 00:08:20]} {[%emt 00:00:56]} gxf3 {[%clk 00:17:05]} {[%emt 00:02:20]} 20.
Nxf3 {[%clk 00:07:58]} {[%emt 00:00:31]} Kf8 {[%clk 00:14:49]} {[%emt
00:02:26]} 21. Ng5 {[%clk 00:06:28]} {[%emt 00:01:40]} Qg7 {[%clk 00:13:00]}
{[%emt 00:01:58]} 22. Ne6+ {[%clk 00:05:56]} {[%emt 00:00:43]} Bxe6 {[%clk
00:13:05]} {[%emt 00:00:05]} 23. dxe6 {[%clk 00:04:30]} {[%emt 00:01:37]} Ke7
{[%clk 00:11:31]} {[%emt 00:01:43]} 24. Bxb6 {[%clk 00:04:22]} {[%emt
00:00:18]} cxb6 {[%clk 00:09:39]} {[%emt 00:02:02]} 25. Qxd6+ {[%clk 00:04:30]}
{[%emt 00:00:02]} Ke8 {[%clk 00:09:43]} {[%emt 00:00:06]} 26. Bb5+ {[%clk
00:04:39]} {[%emt 00:00:02]} Nd7 {[%clk 00:09:05]} {[%emt 00:00:47]} 27. Bxd7+
{[%clk 00:04:46]} {[%emt 00:00:03]} Kd8 {[%clk 00:09:11]} {[%emt 00:00:05]} 28.
Bb5+ {[%clk 00:04:54]} {[%emt 00:00:02]} Kc8 {[%clk 00:09:14]} {[%emt
00:00:06]} 29. Qd8# {[%clk 00:04:52]} {[%emt 00:00:02]} 1-0

[Event "FIDE U16 Olympiad_boards_1-80"]
[Site "Eindhoven, Netherlands"]
[Date "2023.08.13"]
[Round "1.69"]
[White "Savicevs, Arsenijs"]
[Black "Antoniou, Rafail"]
[Result "0-1"]
[TimeControl "2700+10"]
[WhiteElo "2136"]
[BlackElo "1874"]

1. e4 {[%clk 00:45:11]} {[%emt 00:00:09]} c5 {[%clk 00:45:08]} {[%emt
00:00:12]} 2. Nf3 {[%clk 00:45:17]} {[%emt 00:00:04]} e6 {[%clk 00:45:14]}
{[%emt 00:00:05]} 3. d4 {[%clk 00:45:25]} {[%emt 00:00:02]} cxd4 {[%clk
00:45:16]} {[%emt 00:00:08]} 4. Nxd4 {[%clk 00:45:31]} {[%emt 00:00:03]} Nf6
{[%clk 00:45:23]} {[%emt 00:00:04]} 5. Nc3 {[%clk 00:45:33]} {[%emt 00:00:08]}
Nc6 {[%clk 00:45:29]} {[%emt 00:00:03]} 6. Ndb5 {[%clk 00:45:35]} {[%emt
00:00:07]} Bc5 {[%clk 00:45:16]} {[%emt 00:00:25]} 7. Bf4 {[%clk 00:44:59]}
{[%emt 00:00:46]} O-O {[%clk 00:45:12]} {[%emt 00:00:14]} 8. Bc7 {[%clk
00:43:19]} {[%emt 00:01:50]} Qe7 {[%clk 00:45:14]} {[%emt 00:00:07]} 9. Bd6
{[%clk 00:43:18]} {[%emt 00:00:11]} Bxd6 {[%clk 00:45:22]} {[%emt 00:00:03]} 10.
Qxd6 {[%clk 00:43:17]} {[%emt 00:00:10]} Qd8 {[%clk 00:45:15]} {[%emt
00:00:17]} 11. Qd2 {[%clk 00:40:41]} {[%emt 00:02:46]} d5 {[%clk 00:44:03]}
{[%emt 00:01:23]} 12. exd5 {[%clk 00:40:38]} {[%emt 00:00:12]} exd5 {[%clk
00:44:06]} {[%emt 00:00:08]} 13. O-O-O {[%clk 00:40:09]} {[%emt 00:00:38]} Be6
{[%clk 00:40:08]} {[%emt 00:04:09]} 14. Nd4 {[%clk 00:33:47]} {[%emt 00:06:32]}
Rc8 {[%clk 00:34:55]} {[%emt 00:05:23]} 15. g3 {[%clk 00:31:57]} {[%emt
00:01:59]} Nxd4 {[%clk 00:30:16]} {[%emt 00:04:50]} 16. Qxd4 {[%clk 00:31:58]}
{[%emt 00:00:08]} Qa5 {[%clk 00:30:03]} {[%emt 00:00:24]} 17. Bd3 {[%clk
00:28:20]} {[%emt 00:03:47]} b5 {[%clk 00:24:28]} {[%emt 00:05:46]} 18. Kb1
{[%clk 00:21:06]} {[%emt 00:07:24]} b4 {[%clk 00:23:00]} {[%emt 00:01:38]} 19.
Ne2 {[%clk 00:19:33]} {[%emt 00:01:42]} Bg4 {[%clk 00:20:43]} {[%emt 00:02:27]}
20. Rde1 {[%clk 00:17:46]} {[%emt 00:01:58]} Rfe8 {[%clk 00:20:19]} {[%emt
00:00:33]} 21. Nc1 {[%clk 00:15:10]} {[%emt 00:02:46]} Rxe1 {[%clk 00:16:40]}
{[%emt 00:03:50]} 22. Rxe1 {[%clk 00:15:04]} {[%emt 00:00:15]} b3 {[%clk
00:16:33]} {[%emt 00:00:18]} 23. c3 {[%clk 00:13:37]} {[%emt 00:01:37]} bxa2+
{[%clk 00:16:33]} {[%emt 00:00:09]} 24. Nxa2 {[%clk 00:13:36]} {[%emt
00:00:11]} Qc7 {[%clk 00:14:48]} {[%emt 00:01:55]} 25. Nb4 {[%clk 00:12:57]}
{[%emt 00:00:49]} Qd7 {[%clk 00:14:38]} {[%emt 00:00:20]} 26. Re5 {[%clk
00:12:02]} {[%emt 00:01:06]} Rd8 {[%clk 00:13:00]} {[%emt 00:01:48]} 27. Rg5
{[%clk 00:09:22]} {[%emt 00:02:50]} h6 {[%clk 00:13:04]} {[%emt 00:00:06]} 28.
Re5 {[%clk 00:09:02]} {[%emt 00:00:29]} a5 {[%clk 00:11:26]} {[%emt 00:01:49]}
29. Na6 {[%clk 00:08:47]} {[%emt 00:00:25]} Bf3 {[%clk 00:10:44]} {[%emt
00:00:51]} 30. Nc5 {[%clk 00:06:58]} {[%emt 00:02:00]} Qh3 {[%clk 00:09:05]}
{[%emt 00:01:49]} 31. Nb7 {[%clk 00:02:13]} {[%emt 00:04:54]} Ra8 {[%clk
00:09:08]} {[%emt 00:00:07]} 32. Qe3 {[%clk 00:01:04]} {[%emt 00:01:19]} Be4
{[%clk 00:08:24]} {[%emt 00:00:54]} 33. Bxe4 {[%clk 00:00:26]} {[%emt
00:00:48]} dxe4 {[%clk 00:05:56]} {[%emt 00:02:39]} 34. Nd6 {[%clk 00:00:26]}
{[%emt 00:00:10]} Rd8 {[%clk 00:05:14]} {[%emt 00:00:52]} 35. Qb6 {[%clk
00:00:14]} {[%emt 00:00:22]} Qd7 {[%clk 00:04:26]} {[%emt 00:00:58]} 36. Nc4
{[%clk 00:00:18]} {[%emt 00:00:05]} Qd3+ {[%clk 00:04:09]} {[%emt 00:00:27]} 37.
Ka1 {[%clk 00:00:19]} {[%emt 00:00:09]} Rf8 {[%clk 00:03:42]} {[%emt 00:00:38]}
38. Na3 {[%clk 00:00:12]} {[%emt 00:00:17]} Nd7 {[%clk 00:03:39]} {[%emt
00:00:13]} 39. Qxa5 {[%clk 00:00:20]} {[%emt 00:00:02]} Nxe5 {[%clk 00:03:42]}
{[%emt 00:00:07]} 40. Qxe5 {[%clk 00:00:29]} {[%emt 00:00:01]} Qf1+ {[%clk
00:03:40]} {[%emt 00:00:12]} 41. Ka2 {[%clk 00:00:37]} {[%emt 00:00:01]} Qxf2
{[%clk 00:03:46]} {[%emt 00:00:05]} 42. Qxe4 {[%clk 00:00:45]} {[%emt
00:00:02]} Qxh2 {[%clk 00:03:50]} {[%emt 00:00:05]} 43. g4 {[%clk 00:00:12]}
{[%emt 00:00:44]} Rb8 {[%clk 00:03:29]} {[%emt 00:00:30]} 44. Nc4 {[%clk
00:00:14]} {[%emt 00:00:08]} h5 {[%clk 00:03:26]} {[%emt 00:00:13]} 45. gxh5
{[%clk 00:00:21]} {[%emt 00:00:04]} Qxh5 {[%clk 00:03:33]} {[%emt 00:00:03]} 46.
b4 {[%clk 00:00:28]} {[%emt 00:00:03]} Rc8 {[%clk 00:02:31]} {[%emt 00:01:12]}
47. Qd4 {[%clk 00:00:13]} {[%emt 00:00:24]} Qb5 {[%clk 00:01:39]} {[%emt
00:01:03]} 48. Kb3 {[%clk 00:00:19]} {[%emt 00:00:04]} Ra8 {[%emt 00:00:04]} 49.
Na5 {[%clk 00:00:25]} {[%emt 00:00:03]} Rb8 {[%clk 00:01:14]} {[%emt 00:00:42]}
50. Qd6 {[%clk 00:00:27]} {[%emt 00:00:08]} g5 {[%clk 00:00:41]} {[%emt
00:00:43]} 51. c4 {[%clk 00:00:34]} {[%emt 00:00:02]} Qe8 {[%clk 00:00:34]}
{[%emt 00:00:17]} 52. Qg3 {[%clk 00:00:27]} {[%emt 00:00:17]} f6 {[%clk
00:00:23]} {[%emt 00:00:22]} 53. c5 {[%clk 00:00:15]} {[%emt 00:00:21]} Qb5
{[%clk 00:00:24]} {[%emt 00:00:10]} 54. Nc6 {[%clk 00:00:17]} {[%emt 00:00:08]}
Ra8 {[%clk 00:00:15]} {[%emt 00:00:18]} 55. Qd6 {[%clk 00:00:17]} {[%emt
00:00:10]} Qa4+ {[%clk 00:00:20]} {[%emt 00:00:06]} 56. Kc4 {[%clk 00:00:17]}
{[%emt 00:00:10]} Qa2+ {[%clk 00:00:27]} {[%emt 00:00:03]} 57. Kb5 {[%clk
00:00:14]} {[%emt 00:00:13]} Qa6# {[%clk 00:00:36]} {[%emt 00:00:02]} 0-1

[Event "FIDE U16 Olympiad_boards_1-80"]
[Site "Eindhoven, Netherlands"]
[Date "2023.08.13"]
[Round "1.70"]
[White "Daniil, Daniil"]
[Black "Adamovics, Aleksejs"]
[Result "0-1"]
[TimeControl "2700+10"]
[WhiteElo "1379"]
[BlackElo "2000"]

1. e4 {[%clk 00:45:18]} {[%emt 00:00:02]} c5 {[%clk 00:45:16]} {[%emt
00:00:03]} 2. Nf3 {[%clk 00:45:26]} {[%emt 00:00:02]} Nc6 {[%clk 00:45:24]}
{[%emt 00:00:03]} 3. d4 {[%clk 00:45:34]} {[%emt 00:00:02]} cxd4 {[%clk
00:45:31]} {[%emt 00:00:03]} 4. Nxd4 {[%clk 00:45:42]} {[%emt 00:00:01]} g6
{[%clk 00:45:38]} {[%emt 00:00:03]} 5. Nc3 {[%clk 00:45:39]} {[%emt 00:00:13]}
Bg7 {[%clk 00:45:42]} {[%emt 00:00:07]} 6. Be3 {[%clk 00:45:47]} {[%emt
00:00:02]} Nf6 {[%clk 00:45:49]} {[%emt 00:00:03]} 7. Be2 {[%clk 00:45:45]}
{[%emt 00:00:12]} d6 {[%clk 00:45:49]} {[%emt 00:00:10]} 8. h3 {[%clk
00:45:35]} {[%emt 00:00:20]} Qa5 {[%clk 00:45:14]} {[%emt 00:00:44]} 9. O-O
{[%clk 00:45:30]} {[%emt 00:00:15]} O-O {[%clk 00:45:20]} {[%emt 00:00:04]} 10.
Re1 {[%clk 00:40:57]} {[%emt 00:04:44]} Bd7 {[%clk 00:45:12]} {[%emt 00:00:18]}
11. Nf3 {[%clk 00:40:45]} {[%emt 00:00:21]} Rac8 {[%clk 00:43:20]} {[%emt
00:02:02]} 12. Qd2 {[%clk 00:39:38]} {[%emt 00:01:18]} Rfe8 {[%clk 00:39:21]}
{[%emt 00:04:08]} 13. Rad1 {[%clk 00:37:53]} {[%emt 00:01:55]} Qc7 {[%clk
00:36:57]} {[%emt 00:02:34]} 14. a3 {[%clk 00:34:56]} {[%emt 00:03:07]} Na5
{[%clk 00:36:23]} {[%emt 00:00:44]} 15. Bd4 {[%clk 00:28:53]} {[%emt 00:06:13]}
e5 {[%clk 00:29:00]} {[%emt 00:07:33]} 16. Be3 {[%clk 00:28:53]} {[%emt
00:00:11]} Nc4 {[%clk 00:28:36]} {[%emt 00:00:33]} 17. Bxc4 {[%clk 00:28:34]}
{[%emt 00:00:29]} Qxc4 {[%clk 00:28:44]} {[%emt 00:00:02]} 18. Qxd6 {[%clk
00:25:33]} {[%emt 00:03:12]} Re6 {[%clk 00:23:42]} {[%emt 00:05:11]} 19. Qd3
{[%clk 00:24:56]} {[%emt 00:00:47]} Qxd3 {[%clk 00:23:26]} {[%emt 00:00:26]} 20.
Rxd3 {[%clk 00:23:35]} {[%emt 00:01:31]} a6 {[%clk 00:22:44]} {[%emt 00:00:53]}
21. Red1 {[%clk 00:22:40]} {[%emt 00:01:05]} Bc6 {[%clk 00:21:42]} {[%emt
00:01:11]} 22. Rd8+ {[%clk 00:21:36]} {[%emt 00:01:15]} Re8 {[%clk 00:21:35]}
{[%emt 00:00:17]} 23. Rxc8 {[%clk 00:14:58]} {[%emt 00:06:47]} Rxc8 {[%clk
00:21:44]} {[%emt 00:00:02]} 24. Nd2 {[%clk 00:12:06]} {[%emt 00:03:01]} Rd8
{[%clk 00:21:01]} {[%emt 00:00:53]} 25. f3 {[%clk 00:12:12]} {[%emt 00:00:05]}
Nh5 {[%clk 00:19:17]} {[%emt 00:01:54]} 26. Kf2 {[%clk 00:11:00]} {[%emt
00:01:22]} f5 {[%clk 00:18:29]} {[%emt 00:00:57]} 27. g4 {[%clk 00:08:44]}
{[%emt 00:02:26]} Nf4 {[%clk 00:17:46]} {[%emt 00:00:54]} 28. Kg3 {[%clk
00:07:33]} {[%emt 00:01:21]} h5 {[%clk 00:16:21]} {[%emt 00:01:35]} 29. h4
{[%clk 00:04:17]} {[%emt 00:03:26]} hxg4 {[%clk 00:14:42]} {[%emt 00:01:49]} 30.
fxg4 {[%clk 00:04:22]} {[%emt 00:00:05]} fxe4 {[%clk 00:14:17]} {[%emt
00:00:33]} 31. Rf1 {[%clk 00:03:26]} {[%emt 00:01:08]} Rc8 {[%clk 00:12:23]}
{[%emt 00:02:03]} 32. Rf2 {[%clk 00:02:36]} {[%emt 00:01:01]} Nd5 {[%clk
00:11:23]} {[%emt 00:01:09]} 33. Nxd5 {[%clk 00:02:40]} {[%emt 00:00:06]} Bxd5
{[%clk 00:11:31]} {[%emt 00:00:01]} 34. c3 {[%clk 00:02:45]} {[%emt 00:00:06]}
b5 {[%clk 00:11:02]} {[%emt 00:00:40]} 35. Re2 {[%clk 00:02:24]} {[%emt
00:00:31]} Rf8 {[%clk 00:09:51]} {[%emt 00:01:20]} 36. Bg5 {[%clk 00:01:59]}
{[%emt 00:00:36]} Kh7 {[%clk 00:07:54]} {[%emt 00:02:07]} 37. Nxe4 {[%clk
00:02:05]} {[%emt 00:00:04]} Rf1 {[%clk 00:08:03]} 38. Nd2 {[%clk 00:01:52]}
{[%emt 00:00:22]} Rg1+ {[%clk 00:06:47]} {[%emt 00:01:25]} 39. Kh3 {[%clk
00:02:02]} {[%emt 00:00:02]} Rh1+ {[%clk 00:06:00]} {[%emt 00:00:57]} 40. Kg3
{[%clk 00:02:07]} {[%emt 00:00:06]} Rd1 {[%clk 00:05:29]} {[%emt 00:00:39]} 41.
Be3 {[%clk 00:01:40]} {[%emt 00:00:38]} Ra1 {[%clk 00:04:46]} {[%emt 00:00:52]}
42. Nf3 {[%clk 00:01:24]} {[%emt 00:00:27]} Rd1 {[%clk 00:02:48]} {[%emt
00:02:08]} 43. Rd2 {[%clk 00:01:03]} {[%emt 00:00:30]} Bxf3 {[%clk 00:02:39]}
{[%emt 00:00:19]} 44. Kxf3 {[%clk 00:01:12]} {[%emt 00:00:02]} Rh1 {[%clk
00:02:24]} {[%emt 00:00:25]} 45. Bf2 {[%clk 00:01:19]} {[%emt 00:00:02]} Rb1
{[%clk 00:02:29]} {[%emt 00:00:05]} 46. Ke4 {[%clk 00:01:18]} {[%emt 00:00:11]}
Rf1 {[%clk 00:01:57]} {[%emt 00:00:42]} 47. Kd5 {[%clk 00:01:13]} {[%emt
00:00:15]} Kg8 {[%clk 00:01:37]} {[%emt 00:00:31]} 48. Kc6 {[%clk 00:01:20]}
{[%emt 00:00:03]} Kf7 {[%clk 00:01:27]} {[%emt 00:00:19]} 49. Kb6 {[%clk
00:01:28]} {[%emt 00:00:02]} Ke6 {[%clk 00:01:08]} {[%emt 00:00:30]} 50. Kxa6
{[%clk 00:01:35]} {[%emt 00:00:03]} e4 {[%clk 00:00:46]} {[%emt 00:00:32]} 51.
Kxb5 {[%clk 00:01:36]} {[%emt 00:00:08]} Bf8 {[%clk 00:00:25]} {[%emt
00:00:32]} 52. a4 {[%clk 00:01:18]} {[%emt 00:00:28]} Ke5 {[%clk 00:00:20]}
{[%emt 00:00:15]} 53. Bg3 {[%clk 00:01:00]} {[%emt 00:00:28]} Ke6 {[%clk
00:00:19]} {[%emt 00:00:11]} 54. Bf2 {[%clk 00:00:31]} {[%emt 00:00:39]} Ke5
{[%clk 00:00:19]} {[%emt 00:00:11]} 55. Bg3 {[%clk 00:00:17]} {[%emt 00:00:24]}
Ke6 {[%clk 00:00:27]} {[%emt 00:00:01]} 56. Re2 {[%clk 00:00:25]} {[%emt
00:00:02]} Kd5 {[%clk 00:00:25]} {[%emt 00:00:12]} 57. g5 {[%clk 00:00:29]}
{[%emt 00:00:06]} Rf3 {[%clk 00:00:29]} {[%emt 00:00:06]} 58. Be1 {[%clk
00:00:27]} {[%emt 00:00:12]} e3 {[%clk 00:00:32]} {[%emt 00:00:07]} 59. a5
{[%clk 00:00:25]} {[%emt 00:00:12]} Ke4 {[%clk 00:00:35]} {[%emt 00:00:07]} 60.
a6 {[%clk 00:00:24]} {[%emt 00:00:11]} Bd6 {[%clk 00:00:20]} {[%emt 00:00:25]}
61. a7 {[%clk 00:00:22]} {[%emt 00:00:12]} Rf8 {[%clk 00:00:21]} {[%emt
00:00:08]} 62. Kc6 {[%clk 00:00:29]} {[%emt 00:00:03]} Kd3 {[%clk 00:00:26]}
{[%emt 00:00:06]} 63. Rh2 {[%clk 00:00:28]} {[%emt 00:00:10]} Bxh2 {[%clk
00:00:33]} {[%emt 00:00:03]} 64. Kb7 {[%clk 00:00:35]} {[%emt 00:00:03]} Ke2
{[%clk 00:00:38]} {[%emt 00:00:05]} 65. a8=Q {[%clk 00:00:41]} {[%emt
00:00:04]} Rxa8 {[%clk 00:00:47]} {[%emt 00:00:01]} 66. Kxa8 {[%clk 00:00:50]}
Kxe1 {[%clk 00:00:56]} {[%emt 00:00:02]} 67. b4 {[%clk 00:00:44]} {[%emt
00:00:16]} Kd2 {[%clk 00:01:03]} {[%emt 00:00:03]} 68. c4 {[%clk 00:00:51]}
{[%emt 00:00:02]} e2 {[%clk 00:01:11]} {[%emt 00:00:02]} 69. b5 {[%clk
00:01:00]} {[%emt 00:00:01]} e1=Q {[%clk 00:01:19]} {[%emt 00:00:02]} 70. b6
{[%clk 00:01:08]} {[%emt 00:00:02]} Qe8+ {[%clk 00:01:25]} {[%emt 00:00:03]} 71.
Ka7 {[%clk 00:01:16]} {[%emt 00:00:03]} Qb8+ {[%clk 00:01:31]} {[%emt
00:00:04]} 72. Ka6 {[%clk 00:01:25]} {[%emt 00:00:02]} Bg1 {[%clk 00:01:36]}
{[%emt 00:00:04]} 73. b7 {[%clk 00:01:31]} {[%emt 00:00:05]} Qa7+ {[%clk
00:01:43]} {[%emt 00:00:02]} 0-1

[Event "FIDE U16 Olympiad_boards_1-80"]
[Site "Eindhoven, Netherlands"]
[Date "2023.08.13"]
[Round "1.71"]
[White "Vingris, Mikelis"]
[Black "Karaolis, Andreas"]
[Result "1-0"]
[TimeControl "2700+10"]
[WhiteElo "2031"]
[BlackElo "1327"]

1. e4 {[%clk 00:45:17]} {[%emt 00:00:03]} e5 {[%clk 00:45:14]} {[%emt
00:00:06]} 2. Bc4 {[%clk 00:45:23]} {[%emt 00:00:04]} Nc6 {[%clk 00:45:02]}
{[%emt 00:00:22]} 3. d3 {[%clk 00:45:19]} {[%emt 00:00:14]} Bc5 {[%clk
00:45:02]} {[%emt 00:00:10]} 4. Nf3 {[%clk 00:45:24]} {[%emt 00:00:05]} Nf6
{[%clk 00:45:09]} {[%emt 00:00:03]} 5. O-O {[%clk 00:45:30]} {[%emt 00:00:05]}
d6 {[%clk 00:44:58]} {[%emt 00:00:21]} 6. c3 {[%clk 00:45:35]} {[%emt
00:00:04]} h6 {[%clk 00:44:59]} {[%emt 00:00:09]} 7. Nbd2 {[%clk 00:45:23]}
{[%emt 00:00:21]} O-O {[%clk 00:45:04]} {[%emt 00:00:05]} 8. a4 {[%clk
00:45:22]} {[%emt 00:00:11]} a5 {[%clk 00:45:08]} {[%emt 00:00:06]} 9. Re1
{[%clk 00:45:01]} {[%emt 00:00:31]} Re8 {[%clk 00:44:08]} {[%emt 00:01:11]} 10.
Nf1 {[%clk 00:41:41]} {[%emt 00:03:29]} Bg4 {[%clk 00:43:46]} {[%emt 00:00:33]}
11. Ng3 {[%clk 00:38:19]} {[%emt 00:03:31]} Ne7 {[%clk 00:28:19]} {[%emt
00:15:38]} 12. h3 {[%clk 00:30:31]} {[%emt 00:07:57]} Bxf3 {[%clk 00:28:14]}
{[%emt 00:00:16]} 13. Qxf3 {[%clk 00:30:37]} {[%emt 00:00:03]} c6 {[%clk
00:27:36]} {[%emt 00:00:49]} 14. Bxh6 {[%clk 00:28:11]} {[%emt 00:02:36]} Ng6
{[%clk 00:26:07]} {[%emt 00:01:39]} 15. Nh5 {[%clk 00:25:33]} {[%emt 00:02:49]}
Nxh5 {[%clk 00:21:59]} {[%emt 00:04:17]} 16. Bxf7+ {[%clk 00:25:23]} {[%emt
00:00:19]} Kh7 {[%clk 00:21:55]} {[%emt 00:00:15]} 17. Qxh5 {[%clk 00:24:32]}
{[%emt 00:01:00]} Bxf2+ {[%clk 00:21:04]} {[%emt 00:01:02]} 18. Kxf2 {[%clk
00:24:34]} {[%emt 00:00:07]} Qf6+ {[%clk 00:21:02]} {[%emt 00:00:12]} 19. Bf4#
{[%clk 00:24:35]} {[%emt 00:00:10]} 1-0